bitfinex/quotes_SOLUSD_20220105
["timestamp","ask_amount","ask_price","bid_price","bid_amount"]
[1641351667996,38.46367888,168.6,168.48,8.52]
[1641351667997,26.07732561,168.6,168.48,8.52]
[1641351668297,1.64012561,168.6,168.49,24.2419]
[1641351668497,1.64012561,168.6,168.5,9.8685]
[1641351668696,2.71388392,168.6,168.51,29.92721796]
[1641351668899,2.71388392,168.6,168.51,38.44721796]
[1641351669097,2.71388392,168.6,168.51,38.70721796]
[1641351669702,2.71388392,168.6,168.51,39.20721796]
[1641351669903,2.71388392,168.6,168.51,40.65572582]
[1641351670705,2.71388392,168.6,168.51,39.20721796]
[1641351673407,2.71388392,168.6,168.51,38.94721796]
[1641351673408,3.21388392,168.6,168.51,38.94721796]
[1641351673610,2.71388392,168.6,168.51,8.52]
[1641351673809,3.21388392,168.6,168.51,9.02]
[1641351674012,3.21388392,168.6,168.51,8.52]
[1641351675829,3.21388392,168.6,168.51,8.78]
[1641351680838,3.21388392,168.6,168.51,8.52]
[1641351681035,3.21388392,168.6,168.5,1.3485]
[1641351681036,3.47388392,168.6,168.5,1.3485]
[1641351681236,3.47388392,168.6,168.48,8.52]
[1641351681838,3.47388392,168.6,168.49,1.239]
[1641351682341,26.16128392,168.6,168.49,1.499]
[1641351683441,26.16128392,168.6,168.48,22.5177]
[1641351683639,26.16128392,168.6,168.47,74.2278]
[1641351683640,27.45498392,168.6,168.47,74.2278]
[1641351683839,27.45498392,168.6,168.47,74.4878]
[1641351684241,27.45498392,168.6,168.45,10.001583]
[1641351684242,1.44850786,168.59,168.45,10.001583]
[1641351684441,8.52,168.58,168.45,1.481583]
[1641351684641,24.1648,168.57,168.45,1.481583]
[1641351684841,27.46470786,168.57,168.45,1.481583]
[1641351685039,27.72470786,168.57,168.45,1.481583]
[1641351687041,27.72470786,168.57,168.45,1.741583]
[1641351687241,27.72470786,168.57,168.45,3.102283]
[1641351688842,27.46470786,168.57,168.45,3.102283]
[1641351689042,26.0162,168.57,168.45,3.102283]
[1641351689542,26.0162,168.57,168.45,12.122283]
[1641351690546,25.5162,168.57,168.45,12.122283]
[1641351691945,26.0162,168.57,168.45,12.122283]
[1641351692147,26.2762,168.57,168.45,12.122283]
[1641351693347,26.2762,168.57,168.45,11.622283]
[1641351694147,26.2762,168.57,168.45,12.122283]
[1641351694548,26.0162,168.57,168.45,12.122283]
[1641351695953,26.0162,168.57,168.46,23.3944]
[1641351696149,26.0162,168.57,168.46,31.9144]
[1641351696349,26.2762,168.57,168.46,32.6744]
[1641351696549,26.2762,168.57,168.46,32.1744]
[1641351697148,26.2762,168.57,168.47,1.3503]
[1641351697549,26.2762,168.57,168.47,1.6103]
[1641351698152,26.2762,168.57,168.47,1.3503]
[1641351699553,26.2762,168.57,168.47,1.6103]
[1641351705466,26.2762,168.57,168.47,10.1303]
[1641351705668,26.2762,168.57,168.47,1.6103]
[1641351706266,26.2762,168.57,168.47,10.1303]
[1641351706465,26.2762,168.57,168.47,9.8703]
[1641351707871,26.2762,168.57,168.47,10.1303]
[1641351709700,26.2762,168.57,168.47,1.6103]
[1641351718507,26.0162,168.57,168.47,1.6103]
[1641351719508,26.0162,168.57,168.47,2.1103]
[1641351726316,25.5162,168.57,168.47,2.1103]
[1641351726515,25.5162,168.57,168.48,8.52]
[1641351726914,25.5162,168.57,168.48,9.28]
[1641351727716,25.5162,168.57,168.49,1.3425]
[1641351728116,25.5162,168.57,168.49,1.6025]
[1641351728316,25.5162,168.57,168.49,24.5544]
[1641351729219,26.0162,168.57,168.49,24.5544]
[1641351729620,26.0162,168.57,168.49,25.0544]
[1641351731729,0.5,168.57,168.5,29.99366323]
[1641351731930,28.11668392,168.6,168.51,24.3871]
[1641351732326,28.11668392,168.6,168.51,24.6471]
[1641351732527,28.11668392,168.6,168.52,1.3331]
[1641351732926,28.11668392,168.6,168.52,1.5931]
[1641351734226,28.11668392,168.6,168.52,2.0931]
[1641351738353,28.37668392,168.6,168.49,8.52]
[1641351738556,1.44850786,168.59,168.46,1.2883]
[1641351738854,8.52,168.58,168.46,1.2883]
[1641351739056,23.1275,168.57,168.46,1.2883]
[1641351739256,31.6475,168.57,168.46,1.2883]
[1641351739454,32.4075,168.57,168.46,1.2883]
[1641351739654,1.3151,168.56,168.46,1.2883]
[1641351739853,1.8151,168.56,168.46,1.5483]
[1641351740054,2.0751,168.56,168.46,1.5483]
[1641351741860,2.0751,168.56,168.46,1.2883]
[1641351743458,2.0751,168.56,168.46,1.5483]
[1641351744860,2.0751,168.56,168.46,1.2883]
[1641351745062,2.0751,168.56,168.45,1.481583]
[1641351745659,2.0751,168.56,168.45,1.741583]
[1641351746561,3.52360786,168.56,168.45,1.741583]
[1641351747064,23.6102,168.55,168.45,1.741583]
[1641351747261,2.18843071,168.54,168.45,1.481583]
[1641351747462,2.68843071,168.54,168.45,1.741583]
[1641351747664,2.94843071,168.54,168.45,1.741583]
[1641351748063,1.2373,168.53,168.45,1.741583]
[1641351748465,1.7373,168.53,168.45,1.741583]
[1641351750268,1.9973,168.53,168.45,1.481583]
[1641351755577,1.9973,168.53,168.45,1.741583]
[1641351756176,1.9973,168.53,168.45,1.481583]
[1641351757078,1.9973,168.53,168.45,1.741583]
[1641351758678,1.4973,168.53,168.45,1.741583]
[1641351759378,1.2373,168.53,168.45,1.741583]
[1641351760278,1.7373,168.53,168.45,1.741583]
[1641351764587,1.7373,168.53,168.45,3.087683]
[1641351767991,1.9973,168.53,168.45,3.087683]
[1641351771426,1.9973,168.53,168.45,1.481583]
[1641351772126,26.8694,168.53,168.45,1.481583]
[1641351796689,26.8694,168.53,168.45,1.46112213]
[1641351797384,26.1094,168.53,168.45,26.4321822]
[1641351797586,12.39371239,168.56,168.45,26.4321822]
[1641351797783,22.9137,168.57,168.46,23.7119]
[1641351797984,22.9137,168.57,168.46,25.045]
[1641351798184,22.9137,168.57,168.46,25.305]
[1641351798585,2.97002506,168.56,168.46,25.305]
[1641351798986,3.73002506,168.56,168.46,25.305]
[1641351799286,24.0024,168.55,168.46,25.305]
[1641351799488,24.5024,168.55,168.46,25.305]
[1641351799686,24.7624,168.55,168.46,25.305]
[1641351803792,26.0933,168.55,168.46,25.305]
[1641351809826,0.5,168.55,168.46,25.305]
[1641351810028,3.47002506,168.56,168.46,25.305]
[1641351813431,3.47002506,168.56,168.46,25.805]
[1641351813733,3.47002506,168.56,168.46,25.305]
[1641351817431,3.73002506,168.56,168.46,25.305]
[1641351818234,3.73002506,168.56,168.46,25.045]
[1641351819535,3.73002506,168.56,168.46,25.305]
[1641351823641,0.76,168.56,168.46,25.305]
[1641351823845,1.3654,168.57,168.47,8.52]
[1641351824046,24.2256,168.61,168.48,22.8529]
[1641351824341,1.2422,168.6,168.48,24.1917]
[1641351824541,1.5022,168.6,168.48,24.4517]
[1641351824740,2.937034,168.59,168.48,24.4517]
[1641351825141,3.697034,168.59,168.48,24.4517]
[1641351825543,3.437034,168.59,168.48,24.9517]
[1641351825742,451.40006165,168.62,168.49,8.52]
[1641351825941,451.40006165,168.62,168.5,49.71828265]
[1641351826141,451.40006165,168.62,168.51,8.52]
[1641351826342,451.40006165,168.62,168.52,25.424]
[1641351826542,451.40006165,168.62,168.52,25.684]
[1641351826747,2.75362665,168.61,168.52,25.684]
[1641351826945,3.25362665,168.61,168.52,25.684]
[1641351827546,3.25362665,168.61,168.52,34.204]
[1641351828947,3.25362665,168.61,168.52,34.704]
[1641351829149,3.25362665,168.61,168.52,34.204]
[1641351829350,0.5,168.61,168.52,34.204]
[1641351829748,2.0588,168.64,168.52,34.204]
[1641351829951,2.0588,168.64,168.52,35.65250786]
[1641351830550,2.34205116,168.63,168.52,35.65250786]
[1641351830750,2.34205116,168.63,168.52,36.15250786]
[1641351830952,2.60205116,168.63,168.52,36.15250786]
[1641351833252,2.60205116,168.63,168.53,0.06]
[1641351833651,2.60205116,168.63,168.53,1.50850786]
[1641351833850,2.60205116,168.63,168.53,2.26850786]
[1641351834852,2.60205116,168.63,168.54,1.2578]
[1641351835151,2.60205116,168.63,168.54,2.96630786]
[1641351835352,2.60205116,168.63,168.54,3.46630786]
[1641351836853,2.34205116,168.63,168.54,3.46630786]
[1641351837252,2.34205116,168.63,168.55,8.52]
[1641351837456,2.34205116,168.63,168.55,9.02]
[1641351837655,2.34205116,168.63,168.55,9.28]
[1641351838056,2.34205116,168.63,168.56,24.1104]
[1641351838356,2.34205116,168.63,168.56,24.6104]
[1641351838555,2.34205116,168.63,168.56,26.1659]
[1641351839157,2.34205116,168.63,168.57,30.43703508]
[1641351839356,2.34205116,168.63,168.57,30.93703508]
[1641351839559,2.34205116,168.63,168.57,31.19703508]
[1641351841360,48.2837,168.67,168.57,31.19703508]
[1641351841558,48.7837,168.67,168.58,23.265]
[1641351841957,48.7837,168.67,168.58,23.525]
[1641351842160,48.7837,168.67,168.59,1.2959]
[1641351842561,48.7837,168.67,168.59,1.5559]
[1641351842761,2.91636484,168.66,168.59,1.5559]
[1641351842962,3.41636484,168.66,168.59,1.5559]
[1641351846368,3.41636484,168.66,168.59,1.2959]
[1641351846571,3.67636484,168.66,168.59,1.5559]
[1641351848595,3.67636484,168.66,168.58,23.265]
[1641351848894,3.67636484,168.66,168.58,23.525]
[1641351849496,3.41636484,168.66,168.58,23.525]
[1641351849896,0.5,168.66,168.58,23.525]
[1641351850095,24.6317,168.67,168.58,24.025]
[1641351850296,24.6317,168.67,168.59,1.2778]
[1641351850497,24.6317,168.67,168.59,1.5378]
[1641351850695,24.6317,168.67,168.59,2.0378]
[1641351850898,2.80900691,168.66,168.59,2.0378]
[1641351851097,3.30900691,168.66,168.59,1.5378]
[1641351852097,3.30900691,168.66,168.59,2.0378]
[1641351852900,3.30900691,168.66,168.59,1.5378]
[1641351853897,3.56900691,168.66,168.59,1.5378]
[1641351855805,3.56900691,168.66,168.59,0.26]
[1641351856009,3.56900691,168.66,168.58,23.525]
[1641351857211,3.56900691,168.66,168.58,24.025]
[1641351858714,3.56900691,168.66,168.58,23.525]
[1641351861524,3.56900691,168.66,168.56,78.5446]
[1641351861721,3.56900691,168.66,168.55,8.52]
[1641351862321,1.2582,168.65,168.55,8.52]
[1641351862521,1.5182,168.65,168.55,8.52]
[1641351862723,2.0182,168.65,168.55,8.52]
[1641351863324,2.0182,168.65,168.55,8.78]
[1641351865725,1.7582,168.65,168.55,8.78]
[1641351865928,1.7582,168.65,168.56,23.0501]
[1641351866128,1.7582,168.65,168.56,23.3101]
[1641351866750,1.7582,168.65,168.56,24.5921]
[1641351866951,1.7582,168.65,168.56,24.3321]
[1641351867152,2.0182,168.65,168.56,24.3321]
[1641351867352,1.5182,168.65,168.56,24.3321]
[1641351868352,1.5182,168.65,168.56,24.5921]
[1641351868754,1.5182,168.65,168.56,1.542]
[1641351873060,1.2582,168.65,168.56,1.542]
[1641351874159,0.7582,168.65,168.56,1.542]
[1641351875964,0.7582,168.65,168.56,0.26]
[1641351876167,0.7582,168.65,168.53,34.9102]
[1641351896228,0.7582,168.65,168.53,34.1502]
[1641351896421,8.52,168.64,168.5,75.0618]
[1641351896616,10.22850786,168.64,168.5,75.0618]
[1641351896820,1.44850786,168.63,168.49,1.3108]
[1641351897020,1.44850786,168.63,168.46,8.52]
[1641351897021,8.52,168.62,168.46,8.52]
[1641351897227,23.4928,168.61,168.47,31.74832677]
[1641351897420,2.6760236,168.6,168.47,31.74832677]
[1641351897618,2.6760236,168.6,168.46,8.52]
[1641351897819,3.4360236,168.6,168.46,8.52]
[1641351898221,4.41584888,168.59,168.46,8.52]
[1641351898421,4.91584888,168.59,168.46,33.0723]
[1641351898621,5.17584888,168.59,168.46,33.0723]
[1641351898828,5.17584888,168.59,168.46,32.8123]
[1641351899422,5.17584888,168.59,168.46,8.52]
[1641351900628,5.17584888,168.59,168.46,8.78]
[1641351901426,6.62435674,168.59,168.46,8.78]
[1641351901627,5.17584888,168.59,168.46,8.78]
[1641351901824,4.91584888,168.59,168.46,8.78]
[1641351902023,1.8181,168.59,168.46,8.78]
[1641351902225,1.8181,168.59,168.47,1.44850786]
[1641351902723,1.8181,168.59,168.47,0.26]
[1641351903325,1.8181,168.59,168.46,2.78490786]
[1641351903326,2.0781,168.59,168.46,2.78490786]
[1641351903625,2.0781,168.59,168.46,1.5964]
[1641351904930,2.0781,168.59,168.46,3.04490786]
[1641351905129,2.0781,168.59,168.47,24.6381]
[1641351905533,2.0781,168.59,168.47,24.8981]
[1641351911438,1.8181,168.59,168.47,24.8981]
[1641351912971,2.0781,168.59,168.47,24.8981]
[1641351913371,2.0781,168.59,168.47,0.26]
[1641351913572,2.0781,168.59,168.46,2.0401]
[1641351913772,10.5981,168.59,168.46,2.0401]
[1641351914179,24.1982,168.58,168.46,2.0401]
[1641351914381,24.6982,168.58,168.46,2.0401]
[1641351914577,24.9582,168.58,168.46,2.0401]
[1641351916277,1.3425,168.57,168.46,2.0401]
[1641351916477,2.1025,168.57,168.46,2.0401]
[1641351918879,1.8425,168.57,168.46,2.0401]
[1641351919080,0.76,168.57,168.46,10.5601]
[1641351919483,24.9582,168.58,168.46,10.5601]
[1641351919682,24.9582,168.58,168.47,23.6531]
[1641351920181,24.9582,168.58,168.47,23.9731]
[1641351920984,24.9582,168.58,168.48,1.3086]
[1641351921484,24.9582,168.58,168.48,1.5686]
[1641351931224,24.9582,168.58,168.48,3.01710786]
[1641351931622,24.9582,168.58,168.48,1.5686]
[1641351931823,24.9582,168.58,168.48,3.01710786]
[1641351932224,24.9582,168.58,168.48,1.5686]
[1641351933428,0.5,168.58,168.48,11.59710786]
[1641351933826,1.8039,168.59,168.48,11.59710786]
[1641351934026,1.8039,168.59,168.49,24.2708]
[1641351934529,1.8039,168.59,168.49,24.5308]
[1641351935330,1.8039,168.59,168.5,1.2553]
[1641351935529,1.8039,168.59,168.5,1.5153]
[1641351935929,1.8039,168.59,168.51,30.18748069]
[1641351936129,1.8039,168.59,168.51,30.44748069]
[1641351937130,1.8039,168.59,168.52,1.3519]
[1641351937632,1.8039,168.59,168.52,25.608]
[1641351938330,2.0639,168.59,168.52,0.26]
[1641351938532,2.0639,168.59,168.49,0.26]
[1641351938931,2.0639,168.59,168.48,1.5806]
[1641351939131,2.0639,168.59,168.48,24.8424]
[1641351939335,2.0639,168.59,168.48,24.5824]
[1641351940533,2.0639,168.59,168.48,24.8424]
[1641351943136,1.8039,168.59,168.48,24.8424]
[1641351944638,2.0639,168.59,168.48,24.8424]
[1641351960692,2.0639,168.59,168.48,24.5824]
[1641351962094,2.0639,168.59,168.48,24.8424]
[1641351966700,2.0639,168.59,168.48,24.5824]
[1641351967999,2.0639,168.59,168.48,24.8424]
[1641351973300,2.0639,168.59,168.48,24.5824]
[1641351974802,2.0639,168.59,168.48,24.8424]
[1641351978332,1.5639,168.59,168.48,24.8424]
[1641351985641,1.3039,168.59,168.48,24.8424]
[1641351985843,0.8039,168.59,168.48,24.8424]
[1641351989846,0.8039,168.59,168.48,24.5824]
[1641351990144,0.8039,168.59,168.45,1.46112213]
[1641351990145,9.96850786,168.58,168.45,1.46112213]
[1641351990444,26.35630786,168.57,168.45,1.46112213]
[1641351990851,1.44850786,168.56,168.45,1.46112213]
[1641351991048,1.70850786,168.56,168.45,1.46112213]
[1641351991250,2.20850786,168.56,168.45,1.46112213]
[1641352000057,0.76,168.56,168.45,1.46112213]
[1641352000359,31.60489748,168.57,168.45,1.72112213]
[1641352000557,33.9278,168.57,168.45,1.72112213]
[1641352001160,33.9278,168.57,168.46,1.3552]
[1641352001560,33.9278,168.57,168.46,1.6152]
[1641352001780,34.1878,168.57,168.46,1.6152]
[1641352003684,33.9278,168.57,168.46,1.6152]
[1641352005383,34.1878,168.57,168.46,1.6152]
[1641352007685,46.58076199,168.57,168.46,1.6152]
[1641352010887,34.1878,168.57,168.46,1.6152]
[1641352011189,46.58117379,168.57,168.46,1.6152]
[1641352018094,46.32117379,168.57,168.46,1.6152]
[1641352019499,46.58117379,168.57,168.46,1.6152]
[1641352020800,34.1878,168.57,168.46,1.6152]
[1641352021503,25.6678,168.57,168.46,1.6152]
[1641352036443,24.9078,168.57,168.46,8.4852]
[1641352036646,27.2594236,168.6,168.47,33.2566]
[1641352036845,27.2594236,168.6,168.47,35.20510786]
[1641352037045,27.2594236,168.6,168.48,1.44850786]
[1641352037447,27.2594236,168.6,168.48,1.70850786]
[1641352037845,27.7594236,168.6,168.48,1.70850786]
[1641352038045,28.0194236,168.6,168.49,1.3435]
[1641352038444,28.0194236,168.6,168.49,1.6035]
[1641352041847,27.7594236,168.6,168.49,1.6035]
[1641352043348,28.0194236,168.6,168.49,1.6035]
[1641352047665,25.5194236,168.6,168.49,1.6035]
[1641352060317,25.0834,168.6,168.49,39.246164]
[1641352060515,0.5,168.6,168.5,31.5516]
[1641352060915,517.30447979,168.61,168.5,31.8116]
[1641352061413,3.51972035,168.61,168.51,1.3277]
[1641352061812,3.77972035,168.61,168.51,2.0877]
[1641352064012,0.5,168.61,168.51,2.0877]
[1641352064312,1.7752,168.63,168.51,2.0877]
[1641352064516,1.7752,168.63,168.52,8.52]
[1641352064713,1.7752,168.63,168.53,24.7237]
[1641352064914,1.7752,168.63,168.53,30.0887]
[1641352065114,2.4512784,168.62,168.53,30.3487]
[1641352065517,2.4512784,168.62,168.54,1.2941]
[1641352065518,2.9512784,168.62,168.54,1.2941]
[1641352065918,2.9512784,168.62,168.54,1.5541]
[1641352069120,3.2112784,168.62,168.54,1.5541]
[1641352082065,3.2112784,168.62,168.53,24.7237]
[1641352082262,3.2112784,168.62,168.5,84.6224]
[1641352083162,24.4656,168.61,168.51,24.4417]
[1641352083363,24.9656,168.61,168.51,24.4417]
[1641352083564,25.2256,168.61,168.51,24.4417]
[1641352084464,25.2256,168.61,168.52,1.2925]
[1641352084864,25.2256,168.61,168.52,1.5525]
[1641352091472,25.2256,168.61,168.52,0.26]
[1641352091674,25.2256,168.61,168.51,24.4417]
[1641352091874,25.2256,168.61,168.48,8.52]
[1641352092576,25.2256,168.61,168.49,1.2748]
[1641352092973,25.2256,168.61,168.49,1.5348]
[1641352093175,33.7456,168.61,168.49,1.5348]
[1641352093975,33.7456,168.61,168.49,1.2748]
[1641352094576,35.42129288,168.61,168.49,1.2748]
[1641352095175,35.42129288,168.61,168.49,1.5348]
[1641352096775,41.61662866,168.61,168.49,1.5348]
[1641352099208,39.94093578,168.61,168.49,1.5348]
[1641352099977,33.7456,168.61,168.49,1.5348]
[1641352117923,35.42129288,168.61,168.49,1.5348]
[1641352118723,33.7456,168.61,168.49,1.5348]
[1641352119428,33.7456,168.61,168.49,1.2748]
[1641352119629,3.12420074,168.6,168.49,1.2748]
[1641352119827,2.48884369,168.59,168.49,1.2748]
[1641352120026,2.74884369,168.59,168.49,1.2748]
[1641352120226,3.24884369,168.59,168.49,1.2748]
[1641352120426,3.24884369,168.59,168.47,25.6641]
[1641352120630,3.24884369,168.59,168.47,35.4404]
[1641352120827,3.24884369,168.59,168.47,35.7004]
[1641352130941,26.14129288,168.61,168.47,36.2004]
[1641352131144,1.67569288,168.61,168.47,37.70890786]
[1641352131340,1.67569288,168.61,168.47,144.14890786]
[1641352131543,1.67569288,168.61,168.47,153.66108519]
[1641352131750,3.12420074,168.66,168.47,153.66108519]
[1641352131941,2.17819101,168.64,168.48,24.1613]
[1641352132141,2.17819101,168.64,168.5,22.92401437]
[1641352132342,2.17819101,168.64,168.51,9.7878]
[1641352132545,2.17819101,168.64,168.52,24.5525]
[1641352132744,2.67819101,168.64,168.53,8.52]
[1641352132966,2.93819101,168.64,168.54,22.9724]
[1641352133168,2.93819101,168.64,168.55,1.344]
[1641352133469,2.93819101,168.64,168.55,1.604]
[1641352135672,2.93819101,168.64,168.55,1.344]
[1641352138578,2.93819101,168.64,168.55,1.604]
[1641352143083,2.93819101,168.64,168.55,1.344]
[1641352144982,25.98969101,168.64,168.55,1.344]
[1641352150186,1.44850786,168.63,168.51,73.3017]
[1641352150387,10.46850786,168.63,168.52,1.2436]
[1641352150585,10.72850786,168.63,168.52,1.2436]
[1641352150887,2.43312788,168.61,168.52,1.2436]
[1641352151186,2.69312788,168.61,168.52,1.2436]
[1641352151387,4.64163574,168.61,168.49,23.301]
[1641352151589,23.8758,168.6,168.49,23.301]
[1641352151987,1.44850786,168.59,168.49,23.301]
[1641352152190,2.99639752,168.58,168.49,23.301]
[1641352152388,3.49639752,168.58,168.49,23.301]
[1641352152589,5.20490538,168.58,168.49,23.301]
[1641352154793,3.75639752,168.58,168.49,23.301]
[1641352154992,3.75639752,168.58,168.49,23.561]
[1641352156094,3.75639752,168.58,168.5,1.3347]
[1641352166635,3.75639752,168.58,168.47,1.2527]
[1641352166832,3.75639752,168.58,168.47,1.7527]
[1641352167233,3.75639752,168.58,168.47,1.2527]
[1641352167533,23.6982,168.57,168.48,1.2856]
[1641352167932,24.4582,168.57,168.48,1.7856]
[1641352168535,29.5402,168.57,168.45,24.40992213]
[1641352168737,38.0602,168.57,168.45,24.40992213]
[1641352168934,1.44850786,168.56,168.45,24.40992213]
[1641352169435,2.20850786,168.56,168.45,24.40992213]
[1641352169837,1.44850786,168.55,168.45,24.40992213]
[1641352170035,3.00586335,168.54,168.45,24.40992213]
[1641352170436,3.50586335,168.54,168.45,24.40992213]
[1641352170836,3.50586335,168.54,168.46,1.3548]
[1641352171639,3.76586335,168.54,168.46,1.3548]
[1641352187562,0.5,168.54,168.46,1.3548]
[1641352187760,0.5,168.54,168.46,1.6148]
[1641352187960,1.8314,168.56,168.46,1.6148]
[1641352188160,1.3314,168.56,168.46,1.6148]
[1641352188367,1.8314,168.56,168.46,1.6148]
[1641352188562,4.09059995,168.56,168.46,1.6148]
[1641352188963,4.35059995,168.56,168.46,1.6148]
[1641352190262,23.4558,168.55,168.46,1.6148]
[1641352190463,23.9558,168.55,168.46,1.6148]
[1641352191964,24.2158,168.55,168.46,1.6148]
[1641352198076,0.76,168.55,168.46,1.6748]
[1641352198372,2.25919995,168.56,168.46,1.6748]
[1641352198373,2.75919995,168.56,168.47,8.52]
[1641352198573,2.75919995,168.56,168.48,22.9307]
[1641352198973,2.75919995,168.56,168.48,23.1907]
[1641352199375,2.75919995,168.56,168.49,1.2912]
[1641352199575,3.01919995,168.56,168.49,1.5512]
[1641352199777,2.75919995,168.56,168.49,1.5512]
[1641352199979,24.5142,168.6,168.49,1.5512]
[1641352200175,25.0142,168.6,168.49,10.0712]
[1641352200498,25.0142,168.6,168.49,11.51970786]
[1641352200697,25.0142,168.6,168.5,24.3048]
[1641352201100,3.05035577,168.59,168.5,24.5648]
[1641352201501,3.81035577,168.59,168.5,24.5648]
[1641352201899,3.81035577,168.59,168.51,1.2747]
[1641352202099,3.81035577,168.59,168.51,1.5347]
[1641352203100,3.81035577,168.59,168.51,1.2747]
[1641352204603,3.81035577,168.59,168.51,1.5347]
[1641352210515,3.81035577,168.59,168.51,1.2747]
[1641352216722,3.81035577,168.59,168.5,24.3048]
[1641352224757,12.55245577,168.59,168.5,24.3048]
[1641352228264,12.55245577,168.59,168.5,125.77325153]
[1641352228561,6.19548695,168.61,168.5,159.05766008]
[1641352228762,22.56192856,168.66,168.51,0.06]
[1641352228963,23.6097,168.64,168.52,8.52]
[1641352229165,502.14654877,168.7,168.52,9.96850786]
[1641352229363,2.8634911,168.69,168.53,24.1707]
[1641352229564,2.8634911,168.69,168.54,8.52]
[1641352229763,2.8634911,168.69,168.54,17.33150786]
[1641352229962,2.8634911,168.69,168.55,24.12770786]
[1641352230163,2.8634911,168.69,168.57,26.46522809]
[1641352230363,3.3634911,168.69,168.58,24.8774]
[1641352230569,3.3634911,168.69,168.58,30.7264]
[1641352230763,3.3634911,168.69,168.58,31.2264]
[1641352230963,3.6234911,168.69,168.59,8.52]
[1641352231466,3.3634911,168.69,168.59,9.28]
[1641352231664,3.3634911,168.69,168.6,23.2603]
[1641352232164,2.8634911,168.69,168.6,23.5203]
[1641352232462,369.87226047,168.7,168.6,23.5803]
[1641352233265,372.05365374,168.7,168.6,23.5803]
[1641352233464,2.18139327,168.7,168.6,23.5803]
[1641352233665,2.68139327,168.7,168.6,23.5803]
[1641352234065,0.5,168.7,168.61,8.52]
[1641352234265,0.5,168.7,168.61,9.96850786]
[1641352234569,0.14932957,168.74,168.62,1.50850786]
[1641352234768,0.14932957,168.74,168.64,29.7321901]
[1641352234965,0.14932957,168.74,168.66,0.06]
[1641352235166,0.14932957,168.74,168.66,14.852]
[1641352235365,0.14932957,168.74,168.66,15.352]
[1641352235670,0.14932957,168.74,168.66,17.06050786]
[1641352236267,0.14932957,168.74,168.66,15.612]
[1641352236468,0.14932957,168.74,168.66,17.06050786]
[1641352237167,0.14932957,168.74,168.66,15.612]
[1641352237467,0.14932957,168.74,168.67,1.44850786]
[1641352237668,0.14932957,168.74,168.68,115.02]
[1641352237868,0.14932957,168.74,168.68,115.52]
[1641352238069,0.14932957,168.74,168.69,1.44850786]
[1641352238270,0.14932957,168.74,168.7,8.58]
[1641352238467,0.14932957,168.74,168.71,26.20061503]
[1641352238669,0.14932957,168.74,168.72,11.61219997]
[1641352238868,0.14932957,168.74,168.72,12.11219997]
[1641352239070,0.14932957,168.74,168.72,13.82070783]
[1641352239268,0.14932957,168.74,168.73,55.48070781]
[1641352239469,92.7,168.82,168.74,51.14]
[1641352239669,518.6568392,168.88,168.75,115.02]
[1641352239872,518.6568392,168.88,168.75,116.96850786]
[1641352240071,518.6568392,168.88,168.75,115.78]
[1641352240476,486.64257399,168.88,168.75,115.22]
[1641352240673,3.02077387,168.87,168.75,114.96]
[1641352240874,4.96928173,168.87,168.75,8.52]
[1641352241074,14.75599723,168.87,168.75,8.52]
[1641352241271,1.44850786,168.86,168.75,8.52]
[1641352241673,2.20850786,168.86,168.75,8.52]
[1641352242575,0.5,168.86,168.76,0.06]
[1641352242773,0.5,168.86,168.78,0.06]
[1641352242973,3.52077387,168.87,168.78,5.05]
[1641352243173,3.52077387,168.87,168.79,8.52]
[1641352243573,3.52077387,168.87,168.79,8.78]
[1641352243874,3.52077387,168.87,168.79,36.82071663]
[1641352244072,3.52077387,168.87,168.79,8.78]
[1641352244473,0.0046,168.9,168.87,3.52077387]
[1641352244675,406.89931313,168.98,168.97,3.08293122]
[1641352244874,6.1849679,169.1,169.0,8.65250152]